[Event "GER-ch Blitz Women 2020"]
[Site "Magdeburg"]
[Date "2020.08.15"]
[Round "3.4"]
[White "Leib, Britta"]
[Black "Scognamiglio, Stefanie"]
[Result "0-1"]
[ECO "B24"]
[WhiteElo "1903"]
[BlackElo "2097"]
[Annotator "NA RC"]
[PlyCount "29"]
[EventDate "2020.07.28"]
[EventType "tourn"]
[EventCountry "GER"]
[SourceTitle "playchess.com"]
[Source "ChessBase"]
[SourceQuality "1"]
[TimeControl "180+2"]

1. e4 c5 {[%emt 0:00:00]} 2. Nc3 {[%emt 0:00:00]} Nc6 {[%emt 0:00:00]} 3. Nf3 {[%emt 0:00:01]} d6 {[%emt 0:00:01]} 4. d4 {[%emt 0:00:02]} cxd4 {[%emt 0:00:01]} 5. Nxd4 {[%emt 0:00:01]} g6 {[%emt 0:00:01]} 6. Be3 {[%emt 0:00:06]} Bg7 {[%emt 0:00:02]} 7. h3 {[%emt 0:00:05]} Nf6 {[%emt 0:00:01]} 8. Be2 {[%emt 0:00:03]} O-O {[%emt 0:00:02]} 9. O-O {[%emt 0:00:02]} Nd5 {[%emt 0:00:01]} 10. Nxd5 {[%emt 0:00:09]} Qa5 {[%emt 0:00:06]} 11. c3 {[%emt 0:00:16]} Nxd4 {[%emt 0:00:05]} 12. Bxd4 {[%emt 0:00:01]} e5 {[%emt 0:00:06]} 13. Be3 {[%emt 0:00:08]} Rd8 {[%emt 0:00:10]} 14. Qd2 {[%emt 0:00:02]} Bf5 {[%emt 0:00:16]} 15. Rfd1 {[%emt 0:00:04]} 0-1

[Event "GER-ch Blitz Women 2020"]
[Site "Magdeburg"]
[Date "2020.08.15"]
[Round "3.8"]
[White "Zimmer, Elke"]
[Black "Kosovska, Olena"]
[Result "0-1"]
[ECO "C44"]
[WhiteElo "1952"]
[BlackElo "1881"]
[Annotator "NA"]
[PlyCount "36"]
[EventDate "2020.07.28"]
[EventType "tourn"]
[EventCountry "GER"]
[SourceTitle "playchess.com"]
[Source "ChessBase"]
[SourceQuality "1"]
[TimeControl "180+2"]

1. e4 {[%emt 0:00:00]} e5 {[%emt 0:00:00]} 2. Nf3 {[%emt 0:00:02]} Nc6 {[%emt 0:00:00]} 3. d4 {[%emt 0:00:01]} exd4 {[%emt 0:00:02]} 4. Nxd4 {[%emt 0:00:00]} Nf6 {[%emt 0:00:01]} 5. Nc3 {[%emt 0:00:05]} Bb4 {[%emt 0:00:01]} 6. Nxc6 {[%emt 0:00:08]} bxc6 {[%emt 0:00:01]} 7. Bd3 {[%emt 0:00:03]} Bxc3+ {[%emt 0:00:06]} 8. bxc3 {[%emt 0:00:01]} d6 {[%emt 0:00:02]} 9. O-O {[%emt 0:00:03]} h6 {[%emt 0:00:08]} 10. Re1 {[%emt 0:00:04]} O-O {[%emt 0:00:06]} 11. c4 {[%emt 0:00:14]} Rb8 {[%emt 0:00:14]} 12. Bd2 {[%emt 0:00:12]} Be6 {[%emt 0:00:03]} 13. Bc3 {[%emt 0:00:02]} Ng4 {[%emt 0:00:33]} 14. f4 {[%emt 0:00:09]} Qh4 {[%emt 0:00:20]} 15. Qf3 {[%emt 0:00:31]} Qxh2+ {[%emt 0:00:18]} 16. Kf1 {[%emt 0:00:06]} Qh4 17. Ke2 Nh2 {[%emt 0:00:54]} 18. Qf2 {[%emt 0:00:10]} Bg4+ {[%emt 0:00:16]} 0-1

[Event "GER-ch Blitz Women 2020"]
[Site "Magdeburg"]
[Date "2020.08.15"]
[Round "4.9"]
[White "Braun, Kristin"]
[Black "Mader, Lena"]
[Result "0-1"]
[ECO "B50"]
[WhiteElo "1918"]
[BlackElo "1839"]
[Annotator "NA"]
[PlyCount "49"]
[EventDate "2020.07.28"]
[EventType "tourn"]
[EventCountry "GER"]
[SourceTitle "playchess.com"]
[Source "ChessBase"]
[SourceQuality "1"]
[TimeControl "180+2"]

1. e4 {[%emt 0:00:00]} c5 {[%emt 0:00:00]} 2. Nf3 {[%emt 0:00:00]} d6 {[%emt 0:00:00]} 3. d4 {[%emt 0:00:01]} cxd4 {[%emt 0:00:01]} 4. Bc4 {[%emt 0:00:01]} e6 {[%emt 0:00:07]} 5. O-O {[%emt 0:00:02]} Nf6 {[%emt 0:00:01]} 6. Qe2 {[%emt 0:00:01]} Be7 {[%emt 0:00:03]} 7. Nxd4 {[%emt 0:00:03]} O-O {[%emt 0:00:03]} 8. h3 {[%emt 0:00:03]} a6 {[%emt 0:00:01]} 9. a4 {[%emt 0:00:06]} Nbd7 {[%emt 0:00:11]} 10. Rd1 {[%emt 0:00:06]} Qc7 {[%emt 0:00:03]} 11. Nc3 {[%emt 0:00:10]} Ne5 {[%emt 0:00:15]} 12. Bb3 {[%emt 0:00:12]} Nc6 {[%emt 0:00:12]} 13. Be3 {[%emt 0:00:23]} Bd7 {[%emt 0:00:19]} 14. Nxc6 {[%emt 0:00:14]} Bxc6 {[%emt 0:00:01]} 15. a5 {[%emt 0:00:02]} Rac8 {[%emt 0:00:15]} 16. Bb6 {[%emt 0:00:23]} Qb8 {[%emt 0:00:02]} 17. Ba4 {[%emt 0:00:06]} Bd8 {[%emt 0:00:07]} 18. Bxd8 {[%emt 0:00:46]} Rfxd8 {[%emt 0:00:02]} 19. Bxc6 {[%emt 0:00:12]} Rxc6 {[%emt 0:00:03]} 20. Na4 {[%emt 0:00:10]} Qc7 {[%emt 0:00:03]} 21. Nc3 {[%emt 0:00:10]} h6 {[%emt 0:00:09]} 22. Rd2 {[%emt 0:00:19]} Rc5 {[%emt 0:00:13]} 23. Rad1 {[%emt 0:00:05]} Ne8 {[%emt 0:00:15]} 24. Qg4 Rg5 25. Qf4 0-1

[Event "GER-ch Blitz Women 2020"]
[Site "Magdeburg"]
[Date "2020.08.15"]
[Round "6.8"]
[White "Braun, Kristin"]
[Black "Leib, Britta"]
[Result "1/2-1/2"]
[ECO "C01"]
[WhiteElo "1918"]
[BlackElo "1903"]
[Annotator "ChessBase"]
[PlyCount "177"]
[EventDate "2020.07.28"]
[EventType "tourn"]
[EventCountry "GER"]
[SourceTitle "playchess.com"]
[Source "ChessBase"]
[SourceQuality "1"]
[TimeControl "180+2"]

1. e4 {[%emt 0:00:00]} e6 {[%emt 0:00:00]} 2. d4 {[%emt 0:00:00]} d5 {[%emt 0:00:00]} 3. exd5 {[%emt 0:00:00]} exd5 {[%emt 0:00:00]} 4. Nf3 {[%emt 0:00:01]} Nf6 {[%emt 0:00:01]} 5. c4 {[%emt 0:00:00]} c6 {[%emt 0:00:01]} 6. Nc3 {[%emt 0:00:02]} Bf5 {[%emt 0:00:04]} 7. Be2 {[%emt 0:00:01]} h6 {[%emt 0:00:02]} 8. O-O {[%emt 0:00:02]} Be7 {[%emt 0:00:01]} 9. Bf4 {[%emt 0:00:07]} dxc4 {[%emt 0:00:25]} 10. Bxc4 {[%emt 0:00:01]} Nbd7 {[%emt 0:00:01]} 11. Qb3 {[%emt 0:00:31]} O-O {[%emt 0:00:16]} 12. Ne5 Nh5 {[%emt 0:00:19]} 13. Nxf7 {[%emt 0:00:21]} Qb6 {[%emt 0:00:27]} 14. Qxb6 {[%emt 0:00:01]} Nxb6 {[%emt 0:00:02]} 15. Nxh6+ Kh7 16. Nxf5 {[%emt 0:00:29]} Rxf5 {[%emt 0:00:01]} 17. Bd3 {[%emt 0:00:01]} Nxf4 {[%emt 0:00:05]} 18. Bxf5+ {[%emt 0:00:01]} g6 {[%emt 0:00:01]} 19. Bc2 {[%emt 0:00:04]} Rd8 {[%emt 0:00:04]} 20. Rad1 {[%emt 0:00:08]} Bf6 {[%emt 0:00:05]} 21. g3 {[%emt 0:00:13]} Nh3+ {[%emt 0:00:07]} 22. Kg2 {[%emt 0:00:02]} Ng5 {[%emt 0:00:03]} 23. h4 {[%emt 0:00:22]} Nf7 {[%emt 0:00:00]} 24. h5 {[%emt 0:00:02]} Nh6 {[%emt 0:00:07]} 25. Bxg6+ Kg7 26. Ne4 {[%emt 0:00:12]} Bxd4 {[%emt 0:00:08]} 27. Ng5 {[%emt 0:00:01]} Kf6 {[%emt 0:00:03]} 28. Nf3 {[%emt 0:00:08]} c5 {[%emt 0:00:03]} 29. Nxd4 {[%emt 0:00:03]} cxd4 {[%emt 0:00:01]} 30. f3 {[%emt 0:00:12]} Rd7 {[%emt 0:00:05]} 31. Rfe1 {[%emt 0:00:02]} Nc4 {[%emt 0:00:07]} 32. Re4 {[%emt 0:00:12]} Nxb2 {[%emt 0:00:23]} 33. Rdxd4 {[%emt 0:00:04]} Rc7 {[%emt 0:00:05]} 34. Rd2 {[%emt 0:00:08]} Nc4 {[%emt 0:00:03]} 35. Rf4+ {[%emt 0:00:03]} Kg7 {[%emt 0:00:02]} 36. Re2 {[%emt 0:00:07]} Ng8 {[%emt 0:00:03]} 37. g4 {[%emt 0:00:05]} Nf6 {[%emt 0:00:01]} 38. Kf2 {[%emt 0:00:04]} b5 {[%emt 0:00:03]} 39. a4 {[%emt 0:00:03]} a6 {[%emt 0:00:06]} 40. axb5 {[%emt 0:00:00]} axb5 {[%emt 0:00:01]} 41. Rf5 {[%emt 0:00:04]} b4 {[%emt 0:00:06]} 42. Rb5 {[%emt 0:00:01]} Nd5 {[%emt 0:00:17]} 43. Be4 {[%emt 0:00:03]} Nc3 {[%emt 0:00:02]} 44. Rc2 {[%emt 0:00:04]} Nxb5 {[%emt 0:00:02]} 45. Bd3 {[%emt 0:00:04]} Nbd6 {[%emt 0:00:01]} 46. g5 {[%emt 0:00:03]} b3 {[%emt 0:00:00]} 47. Rc1 {[%emt 0:00:04]} b2 {[%emt 0:00:01]} 48. Rb1 {[%emt 0:00:00]} Rc5 {[%emt 0:00:07]} 49. h6+ {[%emt 0:00:01]} Kg8 {[%emt 0:00:00]} 50. h7+ {[%emt 0:00:03]} Kg7 {[%emt 0:00:02]} 51. g6 {[%emt 0:00:02]} Rh5 {[%emt 0:00:01]} 52. Bxc4 {[%emt 0:00:04]} Nxc4 {[%emt 0:00:01]} 53. Ke2 {[%emt 0:00:02]} Kxg6 {[%emt 0:00:03]} 54. Kd3 {[%emt 0:00:01]} Ne5+ {[%emt 0:00:00]} 55. Kc2 {[%emt 0:00:02]} Rh2+ {[%emt 0:00:02]} 56. Kb3 {[%emt 0:00:01]} Nxf3 {[%emt 0:00:03]} 57. Rxb2 {[%emt 0:00:01]} Rxh7 {[%emt 0:00:01]} 58. Rg2+ {[%emt 0:00:01]} Kf5 {[%emt 0:00:01]} 59. Ra2 {[%emt 0:00:01]} Nd4+ {[%emt 0:00:01]} 60. Kc4 Ke4 {[%emt 0:00:02]} 61. Ra8 {[%emt 0:00:02]} Rc7+ {[%emt 0:00:01]} 62. Kb4 {[%emt 0:00:01]} Kd3 {[%emt 0:00:01]} 63. Ra3+ {[%emt 0:00:01]} Ke4 {[%emt 0:00:01]} 64. Ra8 {[%emt 0:00:01]} Nc6+ {[%emt 0:00:02]} 65. Kc5 {[%emt 0:00:03]} Ne5+ {[%emt 0:00:03]} 66. Kb6 {[%emt 0:00:02]} Rc6+ {[%emt 0:00:01]} 67. Kb5 {[%emt 0:00:01]} Rc1 {[%emt 0:00:04]} 68. Ra4+ {[%emt 0:00:01]} Kd5 {[%emt 0:00:01]} 69. Rh4 {[%emt 0:00:05]} Rb1+ {[%emt 0:00:03]} 70. Ka4 {[%emt 0:00:02]} Kc5 {[%emt 0:00:02]} 71. Rh5 {[%emt 0:00:05]} Kd4 {[%emt 0:00:08]} 72. Rh4+ {[%emt 0:00:02]} Kc3 {[%emt 0:00:01]} 73. Rh3+ {[%emt 0:00:00]} Nd3 {[%emt 0:00:00]} 74. Ka5 {[%emt 0:00:04]} Kc4 {[%emt 0:00:04]} 75. Ka6 {[%emt 0:00:02]} Nc5+ {[%emt 0:00:04]} 76. Ka7 {[%emt 0:00:02]} Rb7+ {[%emt 0:00:04]} 77. Ka8 {[%emt 0:00:01]} Rf7 {[%emt 0:00:01]} 78. Kb8 {[%emt 0:00:02]} Nb3 {[%emt 0:00:09]} 79. Rh1 {[%emt 0:00:07]} Nd4 {[%emt 0:00:01]} 80. Rc1+ {[%emt 0:00:01]} Kd5 {[%emt 0:00:00]} 81. Rh1 {[%emt 0:00:00]} Nc6+ {[%emt 0:00:00]} 82. Kc8 {[%emt 0:00:00]} Kd6 {[%emt 0:00:02]} 83. Rd1+ {[%emt 0:00:01]} Kc5 {[%emt 0:00:02]} 84. Rc1+ Kd5 {[%emt 0:00:13]} 85. Rd1+ {[%emt 0:00:00]} Nd4 {[%emt 0:00:01]} 86. Rh1 {[%emt 0:00:00]} Kd6 {[%emt 0:00:06]} 87. Rd1 {[%emt 0:00:02]} Ke5 {[%emt 0:00:10]} 88. Re1+ {[%emt 0:00:00]} Kd5 89. Rd1 {[%emt 0:00:01]} 1/2-1/2

[Event "GER-ch Blitz Women 2020"]
[Site "Magdeburg"]
[Date "2020.08.15"]
[Round "7.2"]
[White "Leib, Britta"]
[Black "Mader, Lena"]
[Result "0-1"]
[ECO "A16"]
[WhiteElo "1903"]
[BlackElo "1839"]
[Annotator "NA"]
[PlyCount "87"]
[EventDate "2020.07.28"]
[EventType "tourn"]
[EventCountry "GER"]
[SourceTitle "playchess.com"]
[Source "ChessBase"]
[SourceQuality "1"]
[TimeControl "180+2"]

1. c4 {[%emt 0:00:00]} Nf6 {[%emt 0:00:00]} 2. Nc3 {[%emt 0:00:00]} g6 {[%emt 0:00:00]} 3. g3 Bg7 4. Bg2 {[%emt 0:00:01]} O-O {[%emt 0:00:01]} 5. Nf3 {[%emt 0:00:02]} d6 {[%emt 0:00:01]} 6. O-O e5 7. d3 {[%emt 0:00:03]} Nc6 $11 {[%emt 0:00:02]} 8. Rb1 {[%emt 0:00:04]} h6 {[%emt 0:00:04]} 9. b4 {[%emt 0:00:05]} Be6 {[%emt 0:00:04]} 10. e3 {[%emt 0:00:07]} a6 {[%emt 0:00:01]} 11. a4 {[%emt 0:00:04]} Qd7 {[%emt 0:00:12]} 12. b5 {[%emt 0:00:08]} axb5 {[%emt 0:00:12]} 13. axb5 {[%emt 0:00:01]} Ne7 {[%emt 0:00:06]} 14. Bb2 {[%emt 0:00:10]} Ra5 {[%emt 0:00:25]} 15. Ra1 {[%emt 0:00:11]} Rfa8 {[%emt 0:00:01]} 16. Rxa5 {[%emt 0:00:01]} Rxa5 {[%emt 0:00:01]} 17. Qc2 {[%emt 0:00:13]} Qc8 {[%emt 0:00:18]} 18. Ra1 {[%emt 0:00:12]} Qa8 {[%emt 0:00:03]} 19. Rxa5 {[%emt 0:00:22]} Qxa5 {[%emt 0:00:01]} 20. h3 {[%emt 0:00:23]} c6 {[%emt 0:00:10]} 21. bxc6 {[%emt 0:00:09]} bxc6 {[%emt 0:00:01]} 22. Nd2 {[%emt 0:00:16]} Qc7 {[%emt 0:00:11]} 23. Qa4 {[%emt 0:00:03]} Bf8 {[%emt 0:00:10]} 24. Qa8 {[%emt 0:00:24]} Qb6 {[%emt 0:00:14]} 25. Qa3 {[%emt 0:00:09]} Nf5 {[%emt 0:00:07]} 26. Qb3 {[%emt 0:00:05]} Qc7 {[%emt 0:00:06]} 27. Kh2 {[%emt 0:00:09]} Be7 {[%emt 0:00:00]} 28. Nde4 {[%emt 0:00:04]} Nxe4 {[%emt 0:00:06]} 29. Nxe4 {[%emt 0:00:04]} d5 {[%emt 0:00:05]} 30. cxd5 {[%emt 0:00:06]} cxd5 {[%emt 0:00:01]} 31. Nd2 {[%emt 0:00:04]} d4 {[%emt 0:00:11]} 32. e4 {[%emt 0:00:10]} Bxb3 {[%emt 0:00:02]} 33. exf5 {[%emt 0:00:03]} Qc2 {[%emt 0:00:04]} 34. Nxb3 Qxb3 {[%emt 0:00:01]} 35. Bc1 {[%emt 0:00:12]} Kg7 {[%emt 0:00:04]} 36. fxg6 {[%emt 0:00:01]} fxg6 {[%emt 0:00:01]} 37. h4 {[%emt 0:00:03]} Qxd3 {[%emt 0:00:01]} 38. h5 {[%emt 0:00:03]} gxh5 {[%emt 0:00:05]} 39. Kh3 {[%emt 0:00:02]} h4 {[%emt 0:00:02]} 40. Kh2 {[%emt 0:00:02]} hxg3+ {[%emt 0:00:02]} 41. fxg3 {[%emt 0:00:00]} Bd6 {[%emt 0:00:01]} 42. Kh3 {[%emt 0:00:05]} e4 {[%emt 0:00:03]} 43. Bf4 Bxf4 44. Kh2 0-1

[Event "GER-ch Blitz Women 2020"]
[Site "Magdeburg"]
[Date "2020.08.15"]
[Round "7.6"]
[White "Zimmer, Elke"]
[Black "Scognamiglio, Stefanie"]
[Result "0-1"]
[ECO "B24"]
[WhiteElo "1952"]
[BlackElo "2097"]
[Annotator "NA RC"]
[PlyCount "44"]
[EventDate "2020.07.28"]
[EventType "tourn"]
[EventCountry "GER"]
[SourceTitle "playchess.com"]
[Source "ChessBase"]
[SourceQuality "1"]
[TimeControl "180+2"]

1. e4 c5 {[%emt 0:00:00]} 2. Nc3 {[%emt 0:00:02]} Nc6 {[%emt 0:00:00]} 3. g3 {[%emt 0:00:02]} g6 {[%emt 0:00:01]} 4. Bg2 {[%emt 0:00:00]} Bg7 {[%emt 0:00:01]} 5. d3 {[%emt 0:00:01]} e6 {[%emt 0:00:05]} 6. Be3 {[%emt 0:00:01]} b6 {[%emt 0:00:01]} 7. Qd2 {[%emt 0:00:02]} h6 {[%emt 0:00:02]} 8. Nf3 {[%emt 0:00:02]} Nge7 {[%emt 0:00:01]} 9. O-O {[%emt 0:00:06]} d5 $11 {[%emt 0:00:05]} 10. exd5 {[%emt 0:00:11]} exd5 {[%emt 0:00:10]} 11. d4 {[%emt 0:00:33]} c4 {[%emt 0:00:14]} 12. Rae1 {[%emt 0:00:09]} Be6 {[%emt 0:00:07]} 13. Bf4 {[%emt 0:00:11]} g5 {[%emt 0:00:10]} 14. Be3 {[%emt 0:00:08]} Nf5 {[%emt 0:00:04]} 15. g4 {[%emt 0:00:25]} Nxe3 {[%emt 0:00:09]} 16. Rxe3 {[%emt 0:00:22]} Qd7 {[%emt 0:00:13]} 17. h3 {[%emt 0:00:01]} O-O-O {[%emt 0:00:03]} 18. Rfe1 {[%emt 0:00:10]} h5 {[%emt 0:00:07]} 19. Ne5 {[%emt 0:00:01]} Bxe5 {[%emt 0:00:06]} 20. dxe5 {[%emt 0:00:03]} hxg4 {[%emt 0:00:04]} 21. hxg4 {[%emt 0:00:05]} d4 {[%emt 0:00:05]} 22. Bxc6 {[%emt 0:00:08]} Qxc6 {[%emt 0:00:02]} 0-1

[Event "GER-ch Blitz Women 2020"]
[Site "Magdeburg"]
[Date "2020.08.15"]
[Round "9.9"]
[White "Zeller, Elisa"]
[Black "Sieber, Fiona"]
[Result "0-1"]
[ECO "B58"]
[WhiteElo "1969"]
[BlackElo "2201"]
[Annotator "RC"]
[PlyCount "126"]
[EventDate "2020.07.28"]
[EventType "tourn"]
[EventCountry "GER"]
[SourceTitle "playchess.com"]
[Source "ChessBase"]
[SourceQuality "1"]
[TimeControl "180+2"]

1. e4 {[%emt 0:00:00]} c5 {[%emt 0:00:00]} 2. Nf3 {[%emt 0:00:00]} d6 {[%emt 0:00:01]} 3. d4 {[%emt 0:00:02]} cxd4 {[%emt 0:00:01]} 4. Nxd4 {[%emt 0:00:02]} Nf6 {[%emt 0:00:02]} 5. Nc3 {[%emt 0:00:01]} Nc6 {[%emt 0:00:02]} 6. Be2 {[%emt 0:00:03]} e5 {[%emt 0:00:02]} 7. Ndb5 {[%emt 0:00:06]} a6 {[%emt 0:00:04]} 8. Na3 {[%emt 0:00:02]} b5 {[%emt 0:00:03]} 9. Nd5 {[%emt 0:00:08]} Nxe4 {[%emt 0:00:35]} 10. Bf3 {[%emt 0:00:06]} Bf5 {[%emt 0:00:22]} 11. Ne3 {[%emt 0:00:19]} Bg6 {[%emt 0:00:48]} 12. O-O {[%emt 0:00:25]} Nd4 {[%emt 0:00:21]} 13. c3 {[%emt 0:00:10]} Nxf3+ {[%emt 0:00:03]} 14. Qxf3 {[%emt 0:00:08]} Be7 {[%emt 0:00:13]} 15. Nd5 {[%emt 0:00:25]} O-O {[%emt 0:00:02]} 16. Be3 {[%emt 0:00:11]} Rb8 {[%emt 0:00:09]} 17. Rfd1 {[%emt 0:00:10]} f5 {[%emt 0:00:02]} 18. c4 {[%emt 0:00:21]} b4 {[%emt 0:00:04]} 19. Nb1 {[%emt 0:00:02]} f4 {[%emt 0:00:04]} 20. Bc1 {[%emt 0:00:12]} Ng5 {[%emt 0:00:16]} 21. Nxe7+ {[%emt 0:00:04]} Qxe7 {[%emt 0:00:01]} 22. Qd5+ {[%emt 0:00:02]} Kh8 {[%emt 0:00:03]} 23. Nd2 {[%emt 0:00:22]} e4 {[%emt 0:00:05]} 24. Nb3 {[%emt 0:00:08]} f3 {[%emt 0:00:04]} 25. g3 {[%emt 0:00:02]} Nh3+ {[%emt 0:00:04]} 26. Kf1 {[%emt 0:00:04]} Rbd8 {[%emt 0:00:02]} 27. Nd4 {[%emt 0:00:02]} Bf7 {[%emt 0:00:02]} 28. Nc6 {[%emt 0:00:04]} Bxd5 {[%emt 0:00:03]} 29. Nxe7 {[%emt 0:00:01]} Bxc4+ {[%emt 0:00:02]} 30. Ke1 {[%emt 0:00:00]} Rfe8 {[%emt 0:00:03]} 31. Nc6 {[%emt 0:00:02]} d5 {[%emt 0:00:02]} 32. Nxd8 {[%emt 0:00:02]} Rxd8 {[%emt 0:00:01]} 33. Be3 {[%emt 0:00:02]} Kg8 {[%emt 0:00:02]} 34. Rac1 {[%emt 0:00:01]} Bb5 {[%emt 0:00:02]} 35. b3 {[%emt 0:00:01]} Kf7 {[%emt 0:00:02]} 36. Rc7+ {[%emt 0:00:02]} Kf6 {[%emt 0:00:02]} 37. Bd4+ {[%emt 0:00:01]} Ke6 {[%emt 0:00:01]} 38. Rxg7 {[%emt 0:00:03]} Rc8 {[%emt 0:00:03]} 39. Rb7 {[%emt 0:00:05]} Rc2 {[%emt 0:00:01]} 40. Rb6+ {[%emt 0:00:03]} Ke7 {[%emt 0:00:02]} 41. Bf6+ {[%emt 0:00:02]} Kf7 {[%emt 0:00:00]} 42. Rxd5 {[%emt 0:00:04]} Re2+ {[%emt 0:00:03]} 43. Kd1 {[%emt 0:00:01]} Nxf2+ {[%emt 0:00:01]} 44. Kc1 {[%emt 0:00:01]} Nd3+ {[%emt 0:00:03]} 45. Kd1 {[%emt 0:00:02]} Re1+ {[%emt 0:00:03]} 46. Kc2 {[%emt 0:00:01]} Rc1+ {[%emt 0:00:02]} 47. Kd2 {[%emt 0:00:01]} Rh1 {[%emt 0:00:03]} 48. Bd4 {[%emt 0:00:05]} Rxh2+ {[%emt 0:00:02]} 49. Kd1 {[%emt 0:00:02]} Rxa2 {[%emt 0:00:03]} 50. Rb7+ {[%emt 0:00:02]} Ke6 {[%emt 0:00:02]} 51. Rd8 {[%emt 0:00:04]} Nf2+ {[%emt 0:00:04]} 52. Bxf2 {[%emt 0:00:01]} Rxf2 {[%emt 0:00:02]} 53. Rg8 {[%emt 0:00:05]} e3 {[%emt 0:00:03]} 54. Rb6+ {[%emt 0:00:02]} Kf5 {[%emt 0:00:02]} 55. Rf8+ {[%emt 0:00:01]} Kg4 {[%emt 0:00:02]} 56. Rg8+ {[%emt 0:00:03]} Kh3 {[%emt 0:00:02]} 57. Rh6+ {[%emt 0:00:02]} Kg2 {[%emt 0:00:01]} 58. Re8 {[%emt 0:00:03]} e2+ {[%emt 0:00:01]} 59. Kd2 {[%emt 0:00:01]} Rf1 {[%emt 0:00:02]} 60. Re3 {[%emt 0:00:04]} Rd1+ {[%emt 0:00:01]} 61. Kc2 {[%emt 0:00:02]} e1=Q {[%emt 0:00:03]} 62. Rxe1 Rxe1 {[%emt 0:00:01]} 63. g4 {[%emt 0:00:02]} f2 {[%emt 0:00:01]} 0-1

[Event "GER-ch Blitz Women 2020"]
[Site "Magdeburg"]
[Date "2020.08.15"]
[Round "13.3"]
[White "Zimmer, Elke"]
[Black "Leib, Britta"]
[Result "1/2-1/2"]
[ECO "C01"]
[WhiteElo "1952"]
[BlackElo "1903"]
[Annotator "RC"]
[PlyCount "66"]
[EventDate "2020.07.28"]
[EventType "tourn"]
[EventCountry "GER"]
[SourceTitle "playchess.com"]
[Source "ChessBase"]
[SourceQuality "1"]
[TimeControl "180+2"]

1. e4 {[%emt 0:00:00]} e6 {[%emt 0:00:00]} 2. d4 d5 3. exd5 {[%emt 0:00:00]} exd5 {[%emt 0:00:00]} 4. Bd3 {[%emt 0:00:01]} Nf6 {[%emt 0:00:00]} 5. Nf3 {[%emt 0:00:01]} Be7 {[%emt 0:00:02]} 6. O-O {[%emt 0:00:04]} O-O {[%emt 0:00:01]} 7. c3 {[%emt 0:00:02]} Bg4 {[%emt 0:00:04]} 8. Bf4 {[%emt 0:00:02]} Nbd7 {[%emt 0:00:08]} 9. Nbd2 {[%emt 0:00:01]} Re8 {[%emt 0:00:09]} 10. Qc2 {[%emt 0:00:00]} c5 {[%emt 0:00:09]} 11. Bf5 {[%emt 0:00:15]} Bh5 {[%emt 0:00:06]} 12. Rfe1 {[%emt 0:00:21]} g6 {[%emt 0:00:21]} 13. Bd3 {[%emt 0:00:16]} cxd4 {[%emt 0:00:09]} 14. Nxd4 {[%emt 0:00:02]} Nc5 {[%emt 0:00:02]} 15. Be2 {[%emt 0:00:05]} Nce4 {[%emt 0:00:16]} 16. Bxh5 {[%emt 0:00:10]} Nxh5 {[%emt 0:00:01]} 17. Bh6 {[%emt 0:00:24]} Bg5 18. Bxg5 {[%emt 0:00:17]} Qxg5 {[%emt 0:00:27]} 19. Nxe4 {[%emt 0:00:08]} dxe4 {[%emt 0:00:03]} 20. Qc1 {[%emt 0:00:36]} Nf4 {[%emt 0:00:30]} 21. g3 {[%emt 0:00:07]} Nh3+ {[%emt 0:00:13]} 22. Kg2 {[%emt 0:00:00]} Qh5 {[%emt 0:00:12]} 23. Qd1 {[%emt 0:00:01]} Qh6 {[%emt 0:00:11]} 24. Qc1 {[%emt 0:00:02]} g5 {[%emt 0:00:19]} 25. Nf5 {[%emt 0:00:09]} Qe6 {[%emt 0:00:10]} 26. Kxh3 {[%emt 0:00:23]} Qxf5+ {[%emt 0:00:01]} 27. Kg2 {[%emt 0:00:01]} Qf3+ {[%emt 0:00:01]} 28. Kg1 {[%emt 0:00:01]} Rad8 {[%emt 0:00:02]} 29. Re3 {[%emt 0:00:01]} Qf5 {[%emt 0:00:00]} 30. Qe1 {[%emt 0:00:01]} Rd5 {[%emt 0:00:12]} 31. Rd1 {[%emt 0:00:04]} Red8 {[%emt 0:00:06]} 32. Rxd5 {[%emt 0:00:12]} Rxd5 {[%emt 0:00:01]} 33. Kg2 {[%emt 0:00:02]} Qd7 1/2-1/2

[Event "GER-ch Blitz Women 2020"]
[Site "Magdeburg"]
[Date "2020.08.15"]
[Round "14.1"]
[White "Paehtz, Elisabeth"]
[Black "Scognamiglio, Stefanie"]
[Result "1-0"]
[ECO "A46"]
[WhiteElo "2473"]
[BlackElo "2097"]
[Annotator "RC"]
[PlyCount "77"]
[EventDate "2020.07.28"]
[EventType "tourn"]
[EventCountry "GER"]
[SourceTitle "playchess.com"]
[Source "ChessBase"]
[SourceQuality "1"]
[TimeControl "180+2"]

1. d4 {[%emt 0:00:00]} Nf6 {[%emt 0:00:00]} 2. Nf3 {[%emt 0:00:00]} c5 {[%emt 0:00:00]} 3. c3 {[%emt 0:00:01]} e6 {[%emt 0:00:01]} 4. Bf4 {[%emt 0:00:01]} d5 {[%emt 0:00:01]} 5. e3 {[%emt 0:00:01]} Nc6 {[%emt 0:00:02]} 6. Nbd2 {[%emt 0:00:02]} Be7 {[%emt 0:00:02]} 7. Bd3 {[%emt 0:00:02]} O-O {[%emt 0:00:04]} 8. h4 {[%emt 0:00:05]} Nh5 {[%emt 0:00:15]} 9. Bh2 {[%emt 0:00:20]} f5 {[%emt 0:00:05]} 10. Ne5 {[%emt 0:00:05]} Nf6 {[%emt 0:00:18]} 11. Bf4 {[%emt 0:00:06]} cxd4 {[%emt 0:00:09]} 12. exd4 {[%emt 0:00:02]} Ne4 {[%emt 0:00:07]} 13. Ndf3 {[%emt 0:00:12]} Nxe5 {[%emt 0:00:15]} 14. Bxe5 {[%emt 0:00:12]} Bd7 {[%emt 0:00:16]} 15. Qe2 {[%emt 0:00:02]} Rc8 {[%emt 0:00:05]} 16. Bf4 {[%emt 0:00:03]} b5 {[%emt 0:00:08]} 17. Bxb5 {[%emt 0:00:14]} Bxb5 {[%emt 0:00:08]} 18. Qxb5 {[%emt 0:00:02]} Bd6 {[%emt 0:00:11]} 19. Bxd6 {[%emt 0:00:12]} Qxd6 {[%emt 0:00:02]} 20. Qe2 {[%emt 0:00:05]} Rb8 {[%emt 0:00:06]} 21. O-O {[%emt 0:00:15]} a5 {[%emt 0:00:22]} 22. Ne5 {[%emt 0:00:04]} Rfc8 {[%emt 0:00:13]} 23. Rac1 {[%emt 0:00:10]} Qe7 {[%emt 0:00:03]} 24. g3 {[%emt 0:00:07]} f4 {[%emt 0:00:10]} 25. Kg2 {[%emt 0:00:14]} Rf8 {[%emt 0:00:32]} 26. Rc2 {[%emt 0:00:05]} Qc7 {[%emt 0:00:09]} 27. Qg4 {[%emt 0:00:05]} Qd6 {[%emt 0:00:06]} 28. gxf4 {[%emt 0:00:14]} Rf5 {[%emt 0:00:01]} 29. Nd3 {[%emt 0:00:19]} Rbf8 {[%emt 0:00:02]} 30. Re2 {[%emt 0:00:07]} Nf6 {[%emt 0:00:02]} 31. Qh3 {[%emt 0:00:06]} Nh5 {[%emt 0:00:01]} 32. Re5 {[%emt 0:00:09]} Nxf4+ {[%emt 0:00:04]} 33. Nxf4 {[%emt 0:00:01]} Rxf4 {[%emt 0:00:01]} 34. Qxe6+ {[%emt 0:00:07]} Qxe6 {[%emt 0:00:01]} 35. Rxe6 {[%emt 0:00:01]} Rxh4 {[%emt 0:00:01]} 36. f3 {[%emt 0:00:01]} h6 {[%emt 0:00:03]} 37. Re5 {[%emt 0:00:01]} Rb8 38. Rf2 Rb5 39. a4 1-0